bitfinex/quotes_SOLUSD_20250425
["timestamp","ask_amount","ask_price","bid_price","bid_amount"]
[1745615462359,0.03,152.51,152.48,2.39963622]
[1745615462752,0.03,152.51,152.49,6.55780706]
[1745615462955,0.03,152.51,152.49,88.97980704]
[1745615463454,0.03,152.51,152.5,2.39963622]
[1745615465238,0.03,152.51,152.5,91.52117481]
[1745615465444,0.03,152.52,152.51,82.39199998]
[1745615466047,0.03,152.52,152.51,84.78503013]
[1745615467366,0.03,152.52,152.51,91.34197721]
[1745615469545,0.03,152.52,152.51,84.78503013]
[1745615470065,0.03,152.52,152.51,91.34197721]
[1745615470560,0.03,152.52,152.51,84.78503013]
[1745615470766,0.03,152.52,152.51,82.39199998]
[1745615473755,0.03,152.52,152.51,84.78317693]
[1745615473955,0.03,152.52,152.51,91.34012401]
[1745615476766,0.03,152.52,152.51,84.78317693]
[1745615477355,0.03,152.52,152.48,6.55794821]
[1745615477970,0.03,152.52,152.46,6.55909746]
[1745615478468,0.03,152.52,152.47,2.39234309]
[1745615479344,0.03,152.52,152.48,2.39234309]
[1745615480372,0.03,152.52,152.43,0.201]
[1745615480373,1.5784,152.48,152.47,2.39234309]
[1745615480577,7.8443,152.48,152.47,2.39234309]
[1745615481274,7.8443,152.48,152.43,82.39199998]
[1745615481275,7.8443,152.48,152.44,2.39234309]
[1745615483848,44.64964886,152.45,152.44,2.39234309]
[1745615484266,51.20917657,152.45,152.44,2.39234309]
[1745615484576,51.20917657,152.45,152.4,82.39199998]
[1745615485454,26.0,152.47,152.4,88.95359481]
[1745615485849,26.0,152.47,152.41,2.39606685]
[1745615486584,26.0,152.47,152.42,2.39606685]
[1745615487275,26.0,152.47,152.41,88.95306066]
[1745615489776,26.0,152.47,152.42,2.39498479]
[1745615490775,26.0,152.47,152.41,88.95306066]
[1745615492775,26.0,152.47,152.42,8.95782276]
[1745615493297,1.5902,152.44,152.42,2.3970732]
[1745615493476,33.92964886,152.43,152.42,2.3970732]
[1745615493672,34.07181043,152.43,152.38,0.063]
[1745615494491,15.28,152.43,152.38,0.063]
[1745615494860,33.92964886,152.43,152.38,0.063]
[1745615495694,15.28,152.43,152.38,0.063]
[1745615498789,1.5902,152.44,152.38,82.45499998]
[1745615499003,1.5902,152.44,152.39,6.56211037]
[1745615503794,1.5902,152.44,152.39,88.95411035]
[1745615515001,1.5902,152.44,152.39,82.39199998]
[1745615515383,1.5902,152.44,152.39,88.95410519]
[1745615518506,1.5902,152.44,152.4,2.39576736]
[1745615519406,1.5902,152.44,152.41,6.56124926]
[1745615520815,1.5902,152.44,152.4,6.56167979]
[1745615521191,1.5902,152.44,152.4,82.39199998]
[1745615522211,1.5902,152.44,152.41,2.40129938]
[1745615523324,1.5902,152.44,152.41,8.96249523]
[1745615523491,1.5902,152.44,152.42,2.40129938]
[1745615524492,1.5902,152.44,152.42,6.56068783]
[1745615524691,1.5902,152.44,152.41,6.56108406]
[1745615526298,1.5902,152.44,152.42,2.40662423]
[1745615526908,32.1031,152.43,152.38,0.063]
[1745615527201,26.0,152.39,152.38,0.063]
[1745615527599,18.64964886,152.42,152.38,0.063]
[1745615527600,26.0,152.41,152.38,0.063]
[1745615528423,6.24526157,152.43,152.38,0.063]
[1745615528424,20.45201043,152.39,152.38,0.063]
[1745615528591,46.45201043,152.39,152.38,0.063]
[1745615529221,53.0141208,152.39,152.38,0.063]
[1745615531118,46.45201043,152.39,152.38,0.063]
[1745615533626,53.0141208,152.39,152.38,0.063]
[1745615534000,33.0694208,152.39,152.38,0.063]
[1745615554454,51.3494208,152.39,152.38,0.063]
[1745615573375,43.6339208,152.39,152.38,0.063]
[1745615574272,18.28,152.39,152.38,0.063]
[1745615574474,44.28,152.39,152.38,0.063]
[1745615578201,50.84211037,152.39,152.38,0.063]
[1745615578559,51.3539208,152.39,152.38,0.063]
[1745615583274,68.9539208,152.39,152.38,0.063]
[1745615584082,43.6,152.39,152.38,0.063]
[1745615588906,26.64794615,152.44,152.38,0.063]
[1745615589684,26.0,152.43,152.39,2.40684397]
[1745615590386,26.0,152.43,152.38,0.063]
[1745615591516,26.0,152.43,152.38,6.62554101]
[1745615592300,26.0,152.43,152.38,0.063]
[1745615596598,32.56039203,152.43,152.38,0.063]
[1745615598097,26.0,152.43,152.38,0.063]
[1745615604309,32.56051948,152.43,152.38,0.063]
[1745615606228,26.0,152.39,152.38,0.063]
[1745615606731,44.79181043,152.39,152.38,0.063]
[1745615606889,18.64964886,152.34,152.33,0.063]
[1745615607089,18.79181043,152.34,152.33,0.063]
[1745615608184,25.35607457,152.34,152.33,0.063]
[1745615609303,18.79181043,152.34,152.33,0.063]
[1745615611313,18.64964886,152.31,152.27,0.063]
[1745615611524,26.0,152.3,152.27,0.063]
[1745615612714,44.79181043,152.33,152.27,0.063]
[1745615615312,26.0,152.33,152.27,0.063]
[1745615615686,16.32,152.35,152.28,1.6121]
[1745615615887,16.32,152.35,152.28,90.19559998]
[1745615616288,16.32,152.35,152.29,23.04546765]
[1745615616813,16.32,152.35,152.3,2.39594766]
[1745615617588,204.72,152.38,152.3,2.39594766]
[1745615617797,204.72,152.38,152.31,2.39594766]
[1745615618006,26.0,152.37,152.31,2.39594766]
[1745615618722,26.0,152.37,152.29,23.04546765]
[1745615619625,26.0,152.37,152.3,2.39584473]
[1745615620923,26.0,152.37,152.3,84.78784471]
[1745615621228,26.0,152.36,152.31,8.96140181]
[1745615621904,26.0,152.36,152.31,6.56555708]
[1745615625125,25.21177007,152.39,152.31,6.56555708]
[1745615625427,26.0,152.36,152.31,6.56555708]
[1745615625726,26.0,152.36,152.32,2.39724097]
[1745615627107,26.0,152.36,152.31,6.56555708]
[1745615629205,26.0,152.36,152.33,6.56469506]
[1745615630902,26.0,152.36,152.3,98.8059133]
[1745615631106,26.0,152.36,152.31,6.56555708]
[1745615631832,26.0,152.36,152.33,6.56469506]
[1745615633234,26.0,152.36,152.31,6.56555708]
[1745615633420,26.0,152.36,152.3,88.95787501]
[1745615635513,41.7,152.36,152.3,6.56587503]
[1745615635707,41.7,152.36,152.29,6.62922176]
[1745615636624,41.7,152.36,152.3,8.96840342]
[1745615636825,48.26341826,152.36,152.3,8.96840342]
[1745615637237,48.26341826,152.36,152.3,6.56592455]
[1745615638233,41.7,152.36,152.3,6.56592455]
[1745615638435,15.7,152.36,152.3,32.56592455]
[1745615638921,18.79181043,152.35,152.29,0.063]
[1745615639938,18.79181043,152.35,152.3,2.40344395]
[1745615640309,15.7,152.36,152.3,2.40344395]
[1745615640837,15.7,152.36,152.3,8.96938024]
[1745615641038,15.7,152.36,152.3,6.56593629]
[1745615642343,15.7,152.36,152.29,6.62941933]
[1745615642841,15.7,152.36,152.3,2.40427224]
[1745615643544,18.79181043,152.35,152.3,2.40427224]
[1745615643923,18.79181043,152.35,152.29,0.063]
[1745615645651,6.56426414,152.34,152.29,0.063]
[1745615645835,18.79181043,152.35,152.29,0.063]
[1745615646941,25.35576016,152.35,152.29,0.063]
[1745615648951,15.7,152.36,152.3,2.41326976]
[1745615649122,18.79181043,152.35,152.3,2.41326976]
[1745615650056,25.35591214,152.35,152.29,0.063]
[1745615651153,25.35591214,152.35,152.3,2.41561701]
[1745615651951,25.35650549,152.33,152.3,2.41561701]
[1745615652128,25.35650549,152.33,152.29,0.063]
[1745615655827,18.79181043,152.31,152.29,0.063]
[1745615656035,18.79181043,152.31,152.28,0.063]
[1745615656036,18.64964886,152.29,152.28,0.063]
[1745615656238,18.79181043,152.29,152.28,0.063]
[1745615657662,25.35822976,152.29,152.28,0.063]
[1745615658663,28.65738019,152.29,152.28,0.063]
[1745615663330,15.08,152.3,152.28,0.063]
[1745615673063,21.64607829,152.3,152.28,0.063]
[1745615674276,15.08,152.3,152.28,0.063]
[1745615685589,21.64603975,152.3,152.28,0.063]
[1745615685963,21.64603975,152.3,152.27,0.063]
[1745615686167,44.79181043,152.25,152.24,0.063]
[1745615686377,26.0,152.25,152.24,0.063]
[1745615686584,26.0,152.27,152.24,0.063]
[1745615693591,26.0,152.29,152.24,0.063]
[1745615694491,26.0,152.29,152.25,2.42035667]
[1745615695692,26.0,152.29,152.24,0.063]
[1745615697395,26.0,152.29,152.25,2.42149505]
[1745615698593,26.0,152.29,152.24,0.063]
[1745615699899,26.0,152.29,152.25,2.42237557]
[1745615700193,18.79181043,152.28,152.25,2.42237557]
[1745615700896,18.79181043,152.28,152.24,0.063]
[1745615701101,18.79181043,152.26,152.24,0.063]
[1745615701286,25.35954021,152.26,152.24,0.063]
[1745615702689,25.35961201,152.26,152.24,0.063]
[1745615702996,18.79181043,152.26,152.24,0.063]
[1745615708385,8.2988,152.27,152.24,0.063]
[1745615708810,8.2988,152.27,152.23,0.063]
[1745615708811,44.64964886,152.23,152.22,0.063]
[1745615708998,59.35181043,152.23,152.22,0.063]
[1745615712994,65.92081785,152.23,152.22,0.063]
[1745615713313,59.35181043,152.23,152.22,0.063]
[1745615719002,65.92081785,152.23,152.22,0.063]
[1745615719518,59.35181043,152.23,152.22,0.063]
[1745615723314,40.56,152.23,152.22,0.063]
[1745615723512,18.79181043,152.18,152.15,0.063]
[1745615723714,14.16,152.17,152.15,0.063]
[1745615734534,18.79181043,152.16,152.15,0.063]
[1745615736121,25.36383987,152.16,152.15,0.063]
[1745615736437,25.36383987,152.16,152.12,0.063]
[1745615740637,18.79181043,152.16,152.12,0.063]
[1745615741720,25.36385329,152.16,152.12,0.063]
[1745615744239,18.79181043,152.16,152.12,0.063]
[1745615744534,25.36389438,152.16,152.12,0.063]
[1745615747329,51.36389438,152.16,152.12,0.063]
[1745615748237,44.79181043,152.13,152.12,0.063]
[1745615748915,51.36513587,152.13,152.12,0.063]
[1745615750129,44.79181043,152.13,152.12,0.063]
[1745615752942,26.0,152.14,152.12,0.063]
[1745615755226,13.82,152.13,152.12,0.063]
[1745615757232,47.13613587,152.13,152.08,0.03]
[1745615757427,44.79181043,152.1,152.05,0.03]
[1745615757623,51.36685661,152.1,152.05,0.03]
[1745615758223,67.8034115,152.1,152.05,0.03]
[1745615758823,67.8034115,152.1,151.99,82.42199998]
[1745615759043,67.8034115,152.1,152.0,2.42154225]
[1745615759347,68.8034115,152.1,152.0,1.92154225]
[1745615759849,68.8034115,152.1,151.99,0.03]
[1745615760945,26.0,152.06,151.99,0.03]
[1745615761124,18.64964886,152.01,151.99,0.03]
[1745615761320,13.96216157,152.0,151.99,0.03]
[1745615761936,39.19075779,152.0,151.99,0.03]
[1745615762931,18.79181043,151.99,151.97,0.03]
[1745615763837,25.22946199,151.98,151.97,0.03]
[1745615764547,25.37162356,151.98,151.97,0.03]
[1745615770830,0.14216157,151.96,151.88,6.58414537]
[1745615771030,18.64964886,151.97,151.88,23.04450881]
[1745615771258,13.84,151.96,151.88,23.04450881]
[1745615773055,13.84,151.96,151.88,16.46036344]
[1745615777135,13.84,151.96,151.87,88.97657889]
[1745615777136,18.64964886,151.95,151.87,88.97657889]
[1745615778952,18.64964886,151.95,151.87,105.43802618]
[1745615781269,13.84,151.96,151.87,105.43802618]
[1745615781958,18.64964886,151.95,151.87,105.43802618]
[1745615782154,18.64964886,151.95,151.87,6.58457891]
[1745615783143,32.58250378,151.92,151.86,1.5324]
[1745615783342,13.72,151.91,151.86,8.11734285]
[1745615783763,13.72,151.91,151.85,0.046404]
[1745615783966,18.64964886,151.9,151.85,0.046404]
[1745615785166,25.23300981,151.9,151.85,0.046404]
[1745615785867,18.64964886,151.9,151.85,0.046404]
[1745615795780,13.72,151.91,151.85,0.046404]
[1745615796160,46.22124886,151.92,151.85,0.046404]
[1745615796360,13.72,151.91,151.85,0.046404]
[1745615799874,13.72,151.91,151.86,2.42512101]
[1745615800557,13.72,151.91,151.85,0.046404]
[1745615800976,18.64964886,151.88,151.85,0.046404]
[1745615801185,0.14216157,151.87,151.85,0.046404]
[1745615801384,13.72,151.86,151.85,0.046404]
[1745615804163,13.86216157,151.86,151.85,0.046404]
[1745615804562,39.09682294,151.86,151.85,0.046404]
[1745615804984,40.67462294,151.86,151.85,0.046404]
[1745615806786,34.08961043,151.86,151.85,0.046404]
[1745615807582,15.43996157,151.86,151.85,0.046404]
[1745615808086,15.43996157,151.86,151.83,1.0]
[1745615808463,15.43996157,151.86,151.82,1.0]
[1745615808664,15.43996157,151.86,151.83,1.0]
[1745615810189,15.2578,151.86,151.83,1.0]
[1745615812283,13.68,151.9,151.84,1.0]
[1745615812490,0.14216157,151.88,151.84,1.0]
[1745615813491,6.72643471,151.88,151.84,1.0]
[1745615813897,6.72643471,151.88,151.83,1.0]
[1745615814198,6.72643471,151.88,151.82,1.0]
[1745615814399,6.72643471,151.88,151.81,1.03]
[1745615814601,6.72643471,151.88,151.84,1.0]
[1745615818901,6.72643471,151.88,151.82,1.0]
[1745615819073,6.72643471,151.88,151.84,1.0]
[1745615819400,6.72643471,151.88,151.82,1.0]
[1745615819699,6.72643471,151.88,151.81,1.03]
[1745615819874,6.72643471,151.88,151.84,1.0]
[1745615823411,6.72643471,151.88,151.82,1.0]
[1745615823580,6.72643471,151.88,151.84,1.0]
[1745615823780,6.72643471,151.88,151.82,1.0]
[1745615824007,6.72643471,151.88,151.81,1.03]
[1745615824604,6.72643471,151.88,151.82,2.44121518]
[1745615824979,6.72643471,151.88,151.84,1.0]
[1745615825319,6.72643471,151.88,151.83,1.0]
[1745615825495,6.72643471,151.88,151.82,1.0]
[1745615825696,6.72643471,151.88,151.84,1.0]
[1745615825881,6.72643471,151.88,151.83,1.0]
[1745615827101,6.72643471,151.88,151.82,1.0]
[1745615827285,6.72643471,151.88,151.83,3.44345493]
[1745615828003,6.72643471,151.88,151.83,1.0]
[1745615830111,13.68,151.87,151.83,1.0]
[1745615831507,13.68,151.87,151.82,1.0]
[1745615831693,13.68,151.87,151.83,1.0]
[1745615832607,20.26463309,151.87,151.83,1.0]
[1745615833409,13.68,151.87,151.83,1.0]
[1745615833610,13.68,151.87,151.84,1.0]
[1745615837714,13.68,151.87,151.84,7.58570047]
[1745615838295,13.68,151.87,151.85,2.44418676]
[1745615838912,13.68,151.87,151.86,1.0]
[1745615839091,58.47181043,151.91,151.86,1.0]
[1745615839517,46.40502739,151.91,151.86,1.0]
[1745615839710,20.40502739,151.91,151.87,1.0]
[1745615839909,46.40502739,151.91,151.87,1.0]
[1745615840417,46.40502739,151.91,151.85,1.0]
[1745615840603,46.40502739,151.91,151.83,1.0]
[1745615840604,26.0,151.87,151.83,1.0]
[1745615840801,26.0,151.87,151.84,2.44458907]
[1745615841611,6.58501251,151.86,151.84,2.44458907]
[1745615842025,6.58501251,151.86,151.81,0.03]
[1745615842315,0.14216157,151.85,151.81,0.03]
[1745615842721,0.14216157,151.85,151.82,2.44740036]
[1745615843420,0.14216157,151.85,151.83,1.0]
[1745615843799,0.14216157,151.85,151.82,2.44740036]
[1745615844000,0.14216157,151.85,151.83,3.44740036]
[1745615844811,0.14216157,151.85,151.84,2.44740036]
[1745615845021,39.68,151.87,151.84,3.44740036]
[1745615845792,13.68,151.87,151.85,1.0]
[1745615845997,6.58339832,151.9,151.87,1.0]
[1745615845998,13.68,151.9,151.87,1.0]
[1745615846739,13.68,151.9,151.86,1.0]
[1745615846907,13.68,151.9,151.87,1.0]
[1745615847209,13.68,151.9,151.88,2.44740036]
[1745615848014,13.68,151.9,151.87,1.0]
[1745615850621,13.68,151.9,151.86,1.0]
[1745615850807,13.68,151.9,151.87,1.0]
[1745615851318,0.14216157,151.89,151.85,1.0]
[1745615851510,0.14216157,151.89,151.86,1.0]
[1745615852105,0.14216157,151.89,151.87,2.44770565]
[1745615852708,13.68,151.9,151.86,7.58494915]
[1745615852912,13.68,151.9,151.87,1.0]
[1745615854028,13.68,151.9,151.88,2.44611476]
[1745615854707,13.68,151.9,151.87,1.0]
[1745615855526,13.68,151.9,151.88,1.0]
[1745615856606,13.68,151.9,151.89,2.44437371]
[1745615861323,13.68,151.9,151.89,3.44437371]
[1745615865349,13.68,151.9,151.89,2.44437371]
[1745615865533,13.68,151.9,151.89,3.44437371]
[1745615866146,13.68,151.9,151.89,2.44437371]
[1745615866347,13.68,151.9,151.89,3.44437371]
[1745615872448,13.68,151.9,151.89,1.0]
[1745615875247,13.68,151.9,151.89,3.45098639]
[1745615876857,0.14216157,151.92,151.89,3.45098639]
[1745615877351,0.14216157,151.92,151.9,1.0]
[1745615879959,0.14216157,151.92,151.89,1.0]
[1745615880255,0.14216157,151.92,151.9,1.0]
[1745615881859,0.14216157,151.92,151.89,1.0]
[1745615882060,0.14216157,151.92,151.9,1.0]
[1745615883066,39.743,151.93,151.9,1.0]
[1745615884160,0.14216157,151.92,151.91,2.45000331]
[1745615884352,18.79181043,151.92,151.91,2.45000331]
[1745615885062,18.79181043,151.92,151.88,1.0]
[1745615885964,0.14216157,151.9,151.88,1.0]
[1745615886263,0.14216157,151.9,151.86,1.0]
[1745615887165,0.14216157,151.9,151.87,2.45178011]
[1745615888058,6.58371189,151.89,151.86,1.0]
[1745615889171,0.14216157,151.88,151.86,1.0]
[1745615890372,32.72661104,151.88,151.87,2.45530284]
[1745615891168,6.72661104,151.88,151.87,2.45530284]
[1745615891673,6.72661104,151.88,151.84,1.0]
[1745615892276,6.72661104,151.88,151.85,2.45446323]
[1745615892976,26.0,151.87,151.86,2.45446323]
[1745615896061,32.58457891,151.87,151.86,2.45446323]
[1745615896785,32.58457891,151.87,151.83,1.0]
[1745615896995,32.58457891,151.87,151.85,1.0]
[1745615897288,32.58457891,151.87,151.83,1.0]
[1745615897491,6.58457891,151.87,151.83,1.0]
[1745615897694,32.58457891,151.87,151.84,2.45386395]
[1745615898683,0.14216157,151.86,151.85,2.45386395]
[1745615899400,0.14216157,151.86,151.82,1.0]
[1745615900000,6.58544616,151.85,151.82,1.0]
[1745615900671,6.58544616,151.85,151.84,1.0]
[1745615901114,6.58544616,151.85,151.83,2.45319551]
[1745615902000,6.58544616,151.85,151.82,1.0]
[1745615902501,6.58544616,151.85,151.83,1.0]
[1745615906331,6.58544616,151.85,151.81,0.03]
[1745615906332,6.58544616,151.85,151.81,1.03]
[1745615906483,26.14216157,151.84,151.81,0.03]
[1745615906911,26.14216157,151.82,151.81,0.03]
[1745615908690,32.72890903,151.82,151.81,0.03]
[1745615912021,32.72890903,151.82,151.79,1.0]
[1745615912318,32.72890903,151.82,151.78,0.03]
[1745615913022,37.87015954,151.82,151.78,0.03]
[1745615913318,37.87015954,151.82,151.78,1.03]
[1745615913621,37.87015954,151.82,151.78,0.03]
[1745615913921,37.87015954,151.82,151.78,1.03]
[1745615914215,18.79181043,151.81,151.74,0.03]
[1745615914427,26.0,151.78,151.74,0.03]
[1745615915196,6.58891744,151.77,151.74,0.03]
[1745615915930,26.0,151.75,151.74,0.03]
[1745615917114,32.58978583,151.75,151.74,0.03]
[1745615919233,32.7319474,151.75,151.74,0.03]
[1745615921439,26.0,151.71,151.62,6.59543595]
[1745615921742,26.0,151.71,151.67,0.03]
[1745615922328,0.14216157,151.7,151.67,0.03]
[1745615923046,6.73435174,151.7,151.67,0.03]
[1745615923545,0.14216157,151.7,151.67,0.03]
[1745615924247,7.7674,151.69,151.58,0.03]
[1745615924543,26.0,151.63,151.58,0.03]
[1745615926150,6.73638026,151.65,151.58,0.03]
[1745615926324,26.0,151.64,151.58,0.03]
[1745615927127,32.59460331,151.64,151.58,0.03]
[1745615927441,0.14216157,151.64,151.58,0.03]
[1745615927637,26.14216157,151.64,151.58,0.03]
[1745615928151,0.14216157,151.62,151.58,0.03]
[1745615928457,26.0,151.63,151.58,0.03]
[1745615930543,26.0,151.64,151.58,0.03]
[1745615937957,32.59462677,151.64,151.58,0.03]
[1745615940462,26.0,151.64,151.58,0.03]
[1745615942958,36.38964886,151.67,151.58,0.03]
[1745615943147,44.64964886,151.67,151.58,0.03]
[1745615943459,18.64964886,151.67,151.58,0.03]
[1745615944151,44.64964886,151.67,151.58,0.03]
[1745615945164,26.0,151.67,151.58,0.03]
[1745615945361,18.64964886,151.7,151.6,26.0]
[1745615945665,44.64964886,151.7,151.61,7.9799]
[1745615945851,55.50774503,151.72,151.61,90.37189998]
[1745615946256,26.0,151.71,151.61,90.37189998]
[1745615946936,26.0,151.71,151.62,23.08402584]
[1745615947143,26.0,151.71,151.62,25.51520317]
[1745615948267,26.0,151.71,151.62,23.08402584]
[1745615948646,26.0,151.71,151.62,105.47602582]
[1745615949266,55.50774503,151.72,151.62,105.47602582]
[1745615949850,55.50774503,151.72,151.63,2.43454342]
[1745615950865,55.50774503,151.72,151.65,6.59413122]
[1745615951879,26.0,151.73,151.64,16.48606171]
[1745615952867,0.063,151.74,151.64,16.48606171]
[1745615952868,26.063,151.74,151.64,16.48606171]
[1745615953069,26.063,151.74,151.66,1.623]
[1745615953376,26.063,151.74,151.66,18.723]
[1745615953947,26.063,151.74,151.67,23.07641589]
[1745615957873,0.063,151.74,151.67,105.46841587]
[1745615959872,0.063,151.74,151.68,2.44584484]
[1745615960774,0.063,151.74,151.7,6.59195781]
[1745615961375,0.063,151.74,151.71,2.44584484]
[1745615961966,0.063,151.74,151.72,6.59108884]
[1745615962269,0.063,151.74,151.73,2.44584484]
[1745615963278,0.063,151.74,151.72,6.59108884]
[1745615963949,0.063,151.74,151.7,23.07185233]
[1745615964861,0.063,151.74,151.71,2.44348387]
[1745615965569,0.063,151.74,151.72,6.59108884]
[1745615965880,0.063,151.74,151.72,2.44348387]
[1745615966554,0.063,151.74,151.69,82.39199998]
[1745615967678,6.65322011,151.74,151.69,82.39199998]
[1745615969881,6.65322011,151.74,151.67,6.59309674]
[1745615970780,6.65322011,151.74,151.66,23.69356373]
[1745615971180,6.65322011,151.74,151.67,2.44459967]
[1745615972078,6.65322011,151.74,151.66,23.69356373]
[1745615972277,6.65322011,151.74,151.66,17.1]
[1745615973784,26.0,151.71,151.64,6.59445883]
[1745615975181,6.65322011,151.74,151.64,6.59445883]
[1745615975364,26.0,151.73,151.64,6.59445883]
[1745615975881,0.063,151.74,151.65,2.44713359]
[1745615976185,26.063,151.74,151.65,2.44713359]
[1745615976677,26.063,151.74,151.66,2.44713359]
[1745615977682,26.063,151.74,151.66,6.59369642]
[1745615978064,32.6532449,151.74,151.66,6.59369642]
[1745615978471,26.063,151.74,151.67,2.44713359]
[1745615978872,0.063,151.74,151.67,2.44713359]
[1745615980483,0.063,151.74,151.68,6.592827]
[1745615981487,0.063,151.74,151.69,2.44713359]
[1745615982386,0.063,151.74,151.68,2.44713359]
[1745615982881,0.063,151.74,151.65,6.59413122]
[1745615983186,26.0,151.72,151.65,6.59413122]
[1745615983891,26.0,151.72,151.66,9.04584628]
[1745615984386,32.59118807,151.72,151.66,9.04605213]
[1745615984982,32.59118807,151.72,151.67,2.45246389]
[1745615987574,32.59118807,151.72,151.68,2.45246389]
[1745615988694,32.59118807,151.72,151.66,2.45246389]
[1745615989393,32.59118807,151.72,151.67,2.45246389]
[1745615990401,32.59118807,151.72,151.68,2.45246389]
[1745615991083,32.59118807,151.72,151.65,6.59395459]
[1745615991296,32.59118807,151.72,151.64,23.35442455]
[1745615992394,32.59118807,151.72,151.65,2.45849212]
[1745615992699,18.79181043,151.71,151.65,2.45849212]
[1745615993202,18.79181043,151.71,151.66,2.45849212]
[1745615993714,32.59118807,151.72,151.66,2.45849212]
[1745615993880,26.0,151.7,151.66,2.45849212]
[1745615994396,26.0,151.7,151.67,2.45849212]
[1745615995107,26.0,151.7,151.66,2.45849212]
[1745615995478,6.59124657,151.72,151.66,9.05214764]
[1745615995679,32.59124657,151.72,151.66,9.05214764]
[1745615996304,32.59124657,151.72,151.67,2.45849212]
[1745615996900,26.0,151.72,151.67,9.05162172]
[1745615997109,26.0,151.72,151.67,2.45849212]
[1745615997296,26.0,151.72,151.68,2.45849212]
[1745615997895,26.0,151.72,151.66,6.59350704]
[1745615998407,26.0,151.72,151.67,2.45811454]
[1745615999414,26.0,151.72,151.68,2.45811454]
[1745616000215,26.0,151.72,151.67,2.45811454]
[1745616000391,32.59110216,151.72,151.67,2.45811454]
[1745616001214,26.0,151.69,151.68,2.45811454]
[1745616002089,26.0,151.69,151.64,2.45811454]
[1745616002291,44.64964886,151.68,151.64,2.45811454]
[1745616002507,18.79181043,151.65,151.57,6.59742525]
[1745616002712,51.29491043,151.65,151.56,0.9250408]
[1745616003315,6.59456607,151.64,151.57,6.5974686]
[1745616003920,32.5031,151.65,151.57,6.5974686]
[1745616004091,26.0,151.65,151.57,6.5974686]
[1745616004399,26.0,151.65,151.57,23.09149776]
[1745616005795,1.6413,151.66,151.57,23.09149776]
[1745616006111,26.0,151.67,151.57,23.09149776]
[1745616007901,26.0,151.67,151.57,105.48349774]
[1745616014817,26.0,151.67,151.61,9.04065785]
[1745616015996,26.0,151.67,151.62,2.44518915]
[1745616016215,32.59334184,151.67,151.62,2.44518915]
[1745616016413,18.79181043,151.66,151.62,2.44518915]
[1745616016821,18.79181043,151.66,151.6,0.03]
[1745616017623,18.79181043,151.66,151.61,2.44504241]
[1745616018534,25.38590105,151.66,151.61,2.44504241]
[1745616018700,25.38590105,151.66,151.6,0.03]
[1745616020028,0.0183,151.6,151.58,6.5971764]
[1745616021418,0.0183,151.6,151.59,9.04082805]
[1745616021733,0.0183,151.6,151.59,2.44408685]
[1745616023839,0.0183,151.6,151.59,9.04082805]
[1745616026328,0.0183,151.6,151.57,6.59722799]
[1745616026506,0.0183,151.6,151.56,7.52289349]
[1745616027410,0.0183,151.6,151.57,2.44458172]
[1745616028030,0.0183,151.6,151.56,7.52289349]
[1745616029828,0.0183,151.6,151.57,9.04184568]
[1745616030710,0.0183,151.6,151.57,6.59759479]
[1745616039533,44.64964886,151.59,151.56,0.9250408]
[1745616041021,51.24644439,151.59,151.56,0.9250408]
[1745616041416,0.14216157,151.58,151.54,0.03]
[1745616041730,6.26116157,151.58,151.54,0.03]
[1745616042231,18.64964886,151.57,151.54,0.03]
[1745616043235,18.79181043,151.55,151.54,0.03]
[1745616044018,18.79181043,151.55,151.5,0.03]
[1745616045327,18.79181043,151.53,151.5,0.03]